bitfinex/quotes_SOLUSD_20250517
["timestamp","ask_amount","ask_price","bid_price","bid_amount"]
[1747485369159,131.7056,167.94,167.84,4.26299282]
[1747485369354,137.7628,167.93,167.84,4.26299282]
[1747485369672,20.84450002,167.91,167.84,4.26299282]
[1747485369876,46.84450002,167.91,167.84,4.26299282]
[1747485370549,20.84450002,167.91,167.82,26.0]
[1747485370756,131.7056,167.9,167.82,26.0]
[1747485370966,131.7056,167.9,167.82,31.95869625]
[1747485372770,137.66157844,167.9,167.82,31.95869625]
[1747485373573,137.66157844,167.9,167.8,5.95939984]
[1747485373948,152.5513938,167.9,167.79,63.38302702]
[1747485374375,131.7056,167.89,167.79,18.36302702]
[1747485374595,131.7056,167.89,167.79,11.84642702]
[1747485374782,131.7056,167.89,167.79,37.84642702]
[1747485375258,152.55382492,167.88,167.79,31.88669282]
[1747485375780,6.522,167.86,167.79,4.26299282]
[1747485376078,131.7056,167.85,167.79,4.26299282]
[1747485377072,131.7056,167.85,167.75,33.48341921]
[1747485377270,131.7056,167.84,167.75,33.48341921]
[1747485378177,5.95841029,167.83,167.75,33.48341921]
[1747485379184,20.85443603,167.83,167.75,27.5222]
[1747485380666,5.95841029,167.83,167.75,33.48338947]
[1747485382674,131.7056,167.84,167.75,48.38651912]
[1747485382884,5.95742919,167.86,167.76,18.64964886]
[1747485383085,5.95742919,167.86,167.77,6.6559]
[1747485383283,5.95699206,167.87,167.8,26.0]
[1747485383592,5.95699206,167.87,167.8,45.04]
[1747485384370,5.95699206,167.87,167.81,5.95912043]
[1747485384887,5.95699206,167.87,167.8,45.04]
[1747485385076,20.84946838,167.87,167.8,26.0]
[1747485385276,20.84946838,167.87,167.77,12.61618072]
[1747485385471,20.84946838,167.87,167.77,38.61618072]
[1747485385669,20.84946838,167.87,167.77,32.6559]
[1747485385882,20.84946838,167.87,167.77,26.0]
[1747485386088,131.7056,167.86,167.76,19.04]
[1747485386385,20.85195113,167.85,167.76,19.04]
[1747485387276,20.85195113,167.85,167.76,25.00068913]
[1747485388195,5.95770032,167.85,167.76,25.00068913]
[1747485388404,137.66305896,167.86,167.76,25.00068913]
[1747485389625,137.66305896,167.86,167.76,39.90293042]
[1747485394900,131.7056,167.86,167.79,26.0]
[1747485396301,131.7056,167.86,167.81,26.0]
[1747485396512,19.04,167.9,167.82,1.6456]
[1747485396683,24.99595916,167.9,167.82,20.6656]
[1747485397006,39.88577452,167.9,167.82,20.6656]
[1747485397172,65.88577452,167.9,167.8,5.95947556]
[1747485398004,65.88577452,167.9,167.79,5.95983074]
[1747485399803,24.99595916,167.9,167.82,5.95876534]
[1747485401111,24.99595916,167.9,167.82,26.0]
[1747485402004,39.88577452,167.9,167.82,26.0]
[1747485402314,39.88577452,167.9,167.8,26.0]
[1747485402616,131.7056,167.89,167.8,26.0]
[1747485403220,5.95663569,167.88,167.81,5.95912043]
[1747485403827,137.66197148,167.89,167.81,5.95912043]
[1747485404000,131.7056,167.89,167.81,5.95912043]
[1747485404319,131.7056,167.89,167.81,20.85692151]
[1747485404507,131.7056,167.89,167.84,26.0]
[1747485404820,5.95528932,167.92,167.84,46.573]
[1747485405430,137.66050622,167.93,167.85,5.95770032]
[1747485408314,131.7056,167.93,167.88,26.0]
[1747485408617,19.02,167.95,167.88,26.0]
[1747485408817,137.65947599,167.96,167.88,26.0]
[1747485409808,137.65947599,167.96,167.89,5.95628089]
[1747485410117,137.65947599,167.96,167.88,31.95660264]
[1747485410315,137.65947599,167.96,167.84,39.593]
[1747485410497,131.7056,167.95,167.84,39.593]
[1747485410814,131.7056,167.95,167.87,26.0]
[1747485411401,5.95450756,167.94,167.87,26.0]
[1747485412290,20.84077646,167.94,167.87,26.0]
[1747485413527,5.95450756,167.94,167.87,26.0]
[1747485413817,5.95450756,167.94,167.87,31.95691288]
[1747485415617,5.95450756,167.94,167.87,26.0]
[1747485417028,5.95450756,167.94,167.87,31.95688552]
[1747485418234,20.84077646,167.94,167.87,26.0]
[1747485418621,5.95450756,167.94,167.87,31.95696891]
[1747485420030,5.95450756,167.94,167.87,26.0]
[1747485420245,131.7056,167.93,167.84,26.53094906]
[1747485420409,131.7056,167.93,167.85,26.0]
[1747485421001,131.7056,167.93,167.86,26.0]
[1747485421226,131.7056,167.93,167.84,27.553]
[1747485421817,131.7056,167.93,167.84,33.51096948]
[1747485422036,5.95521676,167.92,167.84,33.51096948]
[1747485422202,131.7056,167.91,167.84,33.51096948]
[1747485422944,131.7056,167.91,167.84,27.553]
[1747485423839,131.7056,167.9,167.84,1.553]
[1747485424125,5.95628089,167.89,167.81,5.95899047]
[1747485424632,131.7056,167.9,167.81,65.85679155]
[1747485424821,131.7056,167.9,167.84,26.0]
[1747485425205,131.7056,167.9,167.85,26.0]
[1747485425925,137.66021326,167.94,167.85,26.0]
[1747485426508,131.7056,167.94,167.86,5.9573454]
[1747485426708,137.66014633,167.94,167.86,5.9573454]
[1747485428515,137.66014633,167.94,167.85,31.95763819]
[1747485429437,5.95521676,167.92,167.85,31.95763819]
[1747485429806,137.66054591,167.93,167.85,31.95763819]
[1747485430132,131.7056,167.93,167.85,31.95763819]
[1747485431132,131.7056,167.93,167.85,46.851889]
[1747485431436,131.7056,167.93,167.86,7.9496]
[1747485431733,45.0,167.97,167.9,26.0]
[1747485431734,19.0,167.97,167.9,26.0]
[1747485431939,24.95348117,167.97,167.9,26.0]
[1747485432151,19.0,167.97,167.9,26.0]
[1747485432524,24.95349625,167.97,167.9,26.0]
[1747485432822,19.0,167.97,167.9,26.0]
[1747485433237,24.95348245,167.97,167.9,26.0]
[1747485434142,24.95348245,167.97,167.91,5.95557143]
[1747485434715,19.0,167.97,167.91,5.95557143]
[1747485435136,131.7056,167.98,167.91,5.95557143]
[1747485435342,5.95214636,168.01,167.91,5.95557143]
[1747485436926,5.95214636,168.01,167.91,20.84450002]
[1747485437744,5.95214636,168.01,167.94,26.0]
[1747485438045,157.0662,168.02,167.96,26.0]
[1747485438046,150.7056,168.02,167.96,26.0]
[1747485438250,10.64728922,168.05,167.96,26.0]
[1747485438251,142.35288922,168.05,167.96,26.0]
[1747485438447,131.7056,168.05,167.97,18.64964886]
[1747485438663,131.7056,168.08,168.0,26.0]
[1747485438949,137.65525101,168.08,168.01,5.95202666]
[1747485439168,137.65525101,168.08,167.99,5.95244548]
[1747485439349,137.65525101,168.08,167.99,26.0]
[1747485439727,152.52912059,168.08,167.99,26.0]
[1747485440065,131.7056,168.07,167.97,19.0]
[1747485440224,19.0,168.06,167.97,19.0]
[1747485440424,19.0,168.06,167.97,24.95343086]
[1747485440844,5.95060993,168.05,167.97,24.95343086]
[1747485441455,5.95060993,168.05,167.97,5.95343086]
[1747485442050,5.95060993,168.05,167.96,5.95379852]
[1747485442248,5.95060993,168.05,167.95,31.95407563]
[1747485442452,20.82713477,168.05,167.95,26.0]
[1747485446087,26.0,168.02,167.93,8.0204]
[1747485446270,26.0,168.02,167.93,1.5514]
[1747485446471,131.7056,168.01,167.93,1.5514]
[1747485446784,131.7056,168.0,167.93,1.5514]
[1747485447555,131.7056,167.99,167.91,26.0]
[1747485448173,5.95308965,167.98,167.91,26.0]
[1747485448371,20.83581378,167.98,167.91,26.0]
[1747485448600,5.95308965,167.98,167.9,10.2188408]
[1747485448761,5.95308965,167.98,167.9,36.2188408]
[1747485449193,5.95308965,167.98,167.9,26.0]
[1747485449492,131.7056,167.97,167.9,26.0]
[1747485450163,5.95379852,167.96,167.9,26.0]
[1747485451668,131.7056,167.97,167.9,31.95587587]
[1747485452509,131.7056,168.02,167.93,26.0]
[1747485452663,131.7056,168.01,167.93,26.0]
[1747485453572,137.65771018,168.01,167.94,5.95450756]
[1747485453884,131.7056,168.01,167.94,5.95450756]
[1747485454468,137.65770374,168.01,167.94,5.95450756]
[1747485455075,137.65770374,168.01,167.93,24.95473977]
[1747485455686,152.5377704,168.01,167.93,19.0]
[1747485456194,178.5377704,168.01,167.93,19.0]
[1747485456400,150.35524886,168.0,167.89,1.5608]
[1747485456576,131.7056,167.99,167.89,27.5608]
[1747485456781,18.98,167.98,167.89,27.5608]
[1747485457299,18.98,167.98,167.89,33.51704701]
[1747485458127,5.95344406,167.97,167.89,33.51704701]
[1747485459611,137.65834059,167.99,167.89,48.40774925]
[1747485459830,131.7056,167.99,167.9,18.64964886]
[1747485460511,131.7056,167.99,167.93,26.0]
[1747485461610,131.7056,167.99,167.94,5.95450756]
[1747485465520,5.95214307,168.01,167.94,5.95450756]
[1747485467081,5.95214307,168.01,167.92,40.88736695]
[1747485468211,5.95214307,168.01,167.92,46.84258371]
[1747485470714,5.95214307,168.01,167.92,51.10557653]
[1747485474201,131.7056,168.02,167.95,27.6002]
[1747485474415,131.7056,168.02,167.96,19.0]
[1747485476117,137.65729184,168.02,167.96,24.95345275]
[1747485476732,137.65729184,168.02,167.96,19.0]
[1747485479132,131.7056,168.02,167.96,24.95374983]
[1747485479308,131.7056,168.02,167.96,50.95374983]
[1747485481129,137.65732421,168.02,167.96,50.95374983]
[1747485482235,131.7056,168.02,167.96,50.95374983]
[1747485483527,5.95104269,168.04,167.96,50.95374983]
[1747485484635,5.95060993,168.05,167.96,50.95374983]
[1747485486255,20.82713477,168.05,167.96,50.95374983]
[1747485486541,20.82713477,168.05,167.96,50.93374983]
[1747485486853,20.82713477,168.05,167.96,31.95374983]
[1747485487147,18.64964886,168.04,167.94,4.26299282]
[1747485487436,18.64964886,168.02,167.94,4.26299282]
[1747485487649,25.4448,168.01,167.94,4.26299282]
[1747485488247,20.83333333,168.0,167.94,4.26299282]
[1747485488412,131.7056,167.99,167.94,4.26299282]
[1747485489620,131.7056,167.99,167.92,5.95497876]
[1747485490540,131.7056,167.99,167.93,26.0]
[1747485491739,137.65840077,167.99,167.93,26.0]
[1747485492441,137.65840077,167.99,167.93,31.95472483]
[1747485493542,131.7056,167.99,167.93,31.95472483]
[1747485495239,131.7056,167.99,167.93,38.37282483]
[1747485498448,137.65834788,167.99,167.93,26.0]
[1747485500820,137.65834788,167.99,167.93,31.95485675]
[1747485501137,137.65834788,167.99,167.93,26.0]
[1747485501331,137.65834788,167.99,167.9,1.6624]
[1747485501549,137.65834788,167.99,167.9,27.6624]
[1747485502145,152.54018608,167.99,167.9,27.6624]
[1747485502451,152.54018608,167.99,167.89,10.2191639]
[1747485503651,44.64964886,167.97,167.89,4.26299282]
[1747485504324,26.0,167.93,167.89,4.26299282]
[1747485504653,6.5722,167.91,167.89,4.26299282]
[1747485504836,6.5722,167.91,167.84,4.26299282]
[1747485505037,131.7056,167.9,167.84,4.26299282]
[1747485506555,137.66188089,167.89,167.84,4.26299282]
[1747485506728,18.98,167.88,167.84,4.26299282]
[1747485507625,18.98,167.88,167.8,5.95943264]
[1747485507822,131.7056,167.87,167.8,5.95943264]
[1747485508052,131.7056,167.87,167.8,31.95943264]
[1747485508751,131.7056,167.87,167.8,46.85812155]
[1747485513665,131.7056,167.87,167.83,26.0]
[1747485513843,28.9606811,167.91,167.84,19.0]
[1747485514541,131.7056,167.96,167.88,26.0]
[1747485515464,137.65949153,167.96,167.89,5.95628089]
[1747485516266,131.7056,167.96,167.89,5.95628089]
[1747485516561,18.98,167.98,167.91,26.0]
[1747485517161,24.93323463,167.98,167.9,19.0]
[1747485518646,24.93323463,167.98,167.9,24.95583833]
[1747485519166,24.93323463,167.98,167.9,19.0]
[1747485519344,39.81595876,167.98,167.9,19.0]
[1747485520565,39.81595876,167.98,167.87,31.95686156]
[1747485520945,39.81595876,167.98,167.87,5.95686156]
[1747485522446,5.95379852,167.96,167.87,5.95686156]
[1747485525563,5.95450756,167.94,167.87,5.95686156]
[1747485528373,5.95450756,167.94,167.86,7.60973451]
[1747485528578,131.7056,167.93,167.86,7.60973451]
[1747485529782,5.95521676,167.92,167.86,7.60973451]
[1747485530176,137.6605029,167.93,167.86,7.60973451]
[1747485531581,131.7056,167.93,167.86,22.50309802]
[1747485532379,131.7056,167.93,167.86,7.60973451]
[1747485532682,131.7056,167.92,167.85,26.0]
[1747485532887,131.7056,167.92,167.82,1.5058]
[1747485532888,131.7056,167.91,167.82,1.5058]
[1747485533061,131.7056,167.9,167.82,1.5058]
[1747485533257,131.7056,167.9,167.82,27.5058]
[1747485533572,5.95628089,167.89,167.79,19.0]
[1747485533884,5.95628089,167.89,167.8,26.0]
[1747485534383,20.84698313,167.89,167.8,31.95942371]
[1747485534556,131.7056,167.88,167.78,7.62624753]
[1747485534752,131.7056,167.88,167.78,33.62624753]
[1747485534986,131.7056,167.87,167.78,1.6661]
[1747485535289,157.7056,167.87,167.77,4.26299282]
[1747485535657,5.95770032,167.85,167.77,4.26299282]
[1747485535859,131.7056,167.84,167.77,4.26299282]
[1747485536185,131.7056,167.84,167.77,10.22340919]
[1747485537082,131.7056,167.84,167.77,5.96041637]
[1747485537286,5.95841029,167.83,167.76,5.96089651]
[1747485538255,20.85443603,167.83,167.74,1.6661]
[1747485539810,20.85443603,167.83,167.74,7.62749338]
[1747485539811,5.95841029,167.83,167.74,7.62749338]
[1747485540585,131.7056,167.82,167.74,7.62749338]
[1747485540787,131.7056,167.82,167.74,1.6661]
[1747485541081,131.7056,167.81,167.74,1.6661]
[1747485541279,131.7056,167.8,167.74,1.6661]
[1747485541488,131.7056,167.8,167.74,7.62765807]
[1747485544091,131.7056,167.8,167.74,33.62765807]
[1747485544274,59.87391302,167.86,167.74,33.62765807]
[1747485544275,5.9582962,167.84,167.74,33.62765807]
[1747485544471,5.9582962,167.84,167.77,26.0]
[1747485544877,5.9582962,167.84,167.74,22.53167619]
[1747485545191,5.9582962,167.84,167.76,26.0]
[1747485545785,5.9582962,167.84,167.76,31.96070344]
[1747485547483,137.66332922,167.85,167.77,19.0]
[1747485547796,131.7056,167.85,167.79,26.0]
[1747485548085,131.7056,167.9,167.8,1.6261]
[1747485548791,137.66161113,167.9,167.8,1.6261]
[1747485549588,137.66161113,167.9,167.81,5.95912043]
[1747485550792,137.66161113,167.9,167.8,7.58545952]
[1747485551893,152.55142649,167.9,167.8,7.58545952]
[1747485552704,152.55142649,167.9,167.79,50.95977098]
[1747485553607,26.0,167.87,167.77,10.22326763]
[1747485554105,26.0,167.87,167.77,5.96027481]
[1747485554905,5.9573454,167.86,167.77,5.96027481]
[1747485555091,131.7056,167.85,167.77,5.96027481]
[1747485556101,137.66353484,167.85,167.77,5.96027481]
[1747485556803,137.66353484,167.85,167.76,58.86890647]
[1747485557006,131.7056,167.84,167.76,52.60710647]
[1747485557192,131.7056,167.84,167.76,27.6463]
[1747485558310,5.95841029,167.83,167.73,69.96171565]
[1747485558508,131.7056,167.82,167.73,69.96171565]
[1747485558678,131.7056,167.82,167.73,31.96171565]
[1747485558879,5.95841029,167.83,167.72,11.73139096]
[1747485558880,131.7056,167.81,167.72,11.73139096]
[1747485559802,131.7056,167.81,167.72,7.46839814]
[1747485560084,5.95947556,167.8,167.72,7.46839814]
[1747485561418,137.6647339,167.81,167.72,7.46839814]
[1747485561788,131.7056,167.81,167.73,18.64964886]
[1747485562031,131.7056,167.81,167.75,26.0]
[1747485562202,131.7056,167.81,167.76,6.5851]
[1747485562386,131.7056,167.81,167.77,19.0]
[1747485562587,131.7056,167.86,167.78,26.0]
[1747485563412,137.66303453,167.86,167.79,5.95983074]
[1747485564122,131.7056,167.86,167.79,5.95983074]
[1747485564297,131.7056,167.86,167.8,1.6031]
[1747485565336,131.7056,167.86,167.81,5.95912043]
[1747485568087,131.7056,167.86,167.81,31.95912043]
[1747485568292,131.7056,167.91,167.81,46.85692151]
[1747485569294,131.7056,167.91,167.85,26.0]
[1747485569632,131.7056,167.91,167.86,5.9573454]
[1747485569926,137.66121228,167.91,167.85,31.95758712]
[1747485570921,131.7056,167.91,167.85,31.95758712]
[1747485571695,137.66123484,167.91,167.85,31.95758712]
[1747485572219,131.7056,167.91,167.85,31.95758712]
[1747485573323,137.66123581,167.91,167.85,26.0]
[1747485573497,137.66123581,167.91,167.81,5.95912043]
[1747485573696,131.7056,167.9,167.8,49.82545057]
[1747485573895,131.7056,167.9,167.81,26.0]
[1747485574808,137.66188089,167.89,167.8,30.82545057]
[1747485575118,137.66188089,167.89,167.8,26.56245775]
[1747485578410,131.7056,167.88,167.79,31.95971561]
[1747485578810,6.6423,167.87,167.79,26.0]
[1747485579021,131.7056,167.86,167.79,26.0]
[1747485580426,5.95770032,167.85,167.79,31.95979127]
[1747485580617,5.95770032,167.85,167.79,26.0]
[1747485582752,137.66305782,167.86,167.79,31.95979869]
[1747485582915,131.7056,167.86,167.79,31.95979869]
[1747485583110,137.66313199,167.86,167.79,31.95979869]
[1747485584135,137.66313199,167.86,167.78,20.86036241]
[1747485584441,137.66313199,167.86,167.78,46.86036241]
[1747485584736,137.66313199,167.86,167.78,31.96018595]
[1747485585521,131.7056,167.85,167.78,31.96018595]
[1747485585820,5.95805529,167.84,167.78,31.96018595]
[1747485587423,137.66341869,167.85,167.78,31.96018595]
[1747485587613,131.7056,167.85,167.78,31.96018595]
[1747485595118,137.66332889,167.85,167.78,50.96018595]
[1747485596842,131.7056,167.85,167.78,65.86065084]
[1747485599046,137.66333491,167.85,167.78,50.96018595]
[1747485602257,137.66333491,167.85,167.77,5.96045134]
[1747485602445,137.7427,167.84,167.75,18.98]
[1747485602745,131.7056,167.83,167.74,10.22437558]
[1747485602940,131.7056,167.83,167.74,4.26299282]
[1747485603128,131.7056,167.83,167.74,10.22450722]
[1747485604452,20.85567869,167.82,167.74,4.26299282]
[1747485604643,131.7056,167.81,167.74,4.26299282]
[1747485605133,157.7056,167.81,167.74,4.26299282]
[1747485605529,157.7056,167.81,167.7,5.96297765]
[1747485605826,131.7056,167.8,167.69,50.96326486]
[1747485606151,131.7056,167.79,167.69,45.0]
[1747485606339,6.0371,167.78,167.69,26.0]
[1747485606643,20.86189425,167.77,167.69,26.0]
[1747485606828,131.7056,167.76,167.68,4.26299282]
[1747485608024,131.7056,167.76,167.68,10.22670696]
[1747485608541,5.96125186,167.75,167.68,10.22670696]
[1747485608726,5.96125186,167.75,167.68,5.96371414]
[1747485609547,137.66655257,167.76,167.68,5.96371414]
[1747485610845,6.0371,167.78,167.68,5.96371414]
[1747485610846,131.7056,167.8,167.71,26.0]
[1747485611055,137.66510962,167.8,167.71,26.0]
[1747485612152,137.66510962,167.8,167.72,5.96231814]
[1747485613951,131.7056,167.8,167.72,5.96231814]
[1747485614157,137.66508247,167.8,167.72,5.96231814]
[1747485615640,137.66508247,167.8,167.71,31.96255042]
[1747485615953,152.56377138,167.8,167.71,26.0]
[1747485618056,152.56377138,167.8,167.71,31.96266315]
[1747485618430,152.56377138,167.8,167.71,26.0]
[1747485618858,152.56377138,167.8,167.7,5.96297337]
[1747485619156,178.56377138,167.8,167.68,50.96374045]
[1747485619562,150.35524886,167.79,167.67,1.6598]
[1747485619862,20.86065084,167.78,167.67,33.62377863]
[1747485620036,19.0,167.77,167.67,33.62377863]
[1747485620542,45.0,167.77,167.67,1.6598]
[1747485622336,5.96089651,167.76,167.67,7.62383244]
[1747485623062,20.8631378,167.76,167.67,7.62383244]
[1747485623758,20.8631378,167.76,167.65,32.4129]
[1747485624060,137.9844,167.75,167.65,31.96472566]
[1747485624263,20.86686936,167.73,167.63,1.644]
[1747485624452,20.86686936,167.73,167.63,52.60943687]
[1747485624963,5.96196267,167.73,167.63,52.60943687]
[1747485627452,5.96267366,167.71,167.63,52.60943687]
[1747485629951,5.96267366,167.71,167.63,27.644]
[1747485630174,20.86935781,167.71,167.63,27.644]
[1747485630875,20.86935781,167.71,167.6,6.2725]
[1747485630876,131.7056,167.7,167.6,12.23883986]
[1747485631066,131.7056,167.69,167.6,19.0]
[1747485632152,5.96374045,167.68,167.6,19.0]
[1747485632418,131.7056,167.67,167.59,1.5743]
[1747485632677,131.7056,167.66,167.59,1.5743]
[1747485633177,131.7056,167.66,167.58,26.0]
[1747485633881,131.7056,167.66,167.58,31.96719482]
[1747485634054,137.67021717,167.66,167.58,31.96719482]
[1747485635050,131.7056,167.66,167.58,46.88544282]
[1747485635659,137.67008271,167.66,167.58,46.88544282]
[1747485635959,137.67008271,167.66,167.58,50.96719482]
[1747485636501,63.64964886,167.71,167.58,26.0]
[1747485636502,5.96516344,167.64,167.58,26.0]
[1747485636792,5.96516344,167.64,167.55,46.5557]
[1747485636970,131.7056,167.63,167.55,46.5557]
[1747485637690,131.7056,167.63,167.55,52.5238003]
[1747485638270,131.7056,167.63,167.55,33.5238003]
[1747485638864,5.96587519,167.62,167.55,33.5238003]
[1747485640478,5.96587519,167.62,167.55,26.0]
[1747485640674,131.7056,167.61,167.52,52.9988]
[1747485641694,5.96658711,167.6,167.52,58.96819275]
[1747485642399,131.7056,167.59,167.51,5.96967874]
[1747485642767,131.7056,167.59,167.51,20.89416086]
[1747485643974,137.67262998,167.59,167.51,5.96967874]
[1747485644500,137.67262998,167.59,167.49,19.08]
[1747485644501,137.67262998,167.59,167.49,51.05023103]
[1747485645079,180.35524886,167.58,167.48,5.97079232]
[1747485645279,131.7056,167.57,167.48,5.97079232]
[1747485645991,5.96801145,167.56,167.48,5.97079232]
[1747485646208,35.96801145,167.56,167.48,5.97079232]
[1747485647182,30.0,167.56,167.48,5.97079232]
[1747485647414,30.0,167.56,167.48,39.54759666]
[1747485647712,30.0,167.56,167.48,20.8979478]
[1747485648003,35.9681313,167.56,167.48,5.97079232]
[1747485649314,5.9681313,167.56,167.48,5.97079232]
[1747485649917,5.9681313,167.56,167.44,25.20214886]
[1747485649918,131.7056,167.55,167.44,6.5525]
[1747485650214,27.05375994,167.56,167.44,6.5525]
[1747485650215,131.7056,167.54,167.44,6.5525]
[1747485650418,131.7056,167.54,167.44,32.5525]
[1747485650880,5.96908016,167.53,167.45,5.97164567]
[1747485654425,137.67506542,167.52,167.45,5.97164567]
[1747485655219,137.67506542,167.52,167.44,12.52474212]
[1747485655220,131.7056,167.51,167.44,12.52474212]
[1747485655429,131.7056,167.51,167.43,1.6039]
[1747485656400,5.97014925,167.5,167.43,7.57646999]
[1747485658108,137.67548986,167.51,167.43,7.57646999]
[1747485658937,131.7056,167.51,167.43,22.5080832]
[1747485659324,137.67540715,167.51,167.43,22.5080832]
[1747485661246,131.7056,167.51,167.43,22.5080832]
[1747485664344,131.7056,167.55,167.49,5.9705057]
[1747485665044,150.7256,167.58,167.5,1.5547]
[1747485666123,131.7056,167.58,167.5,1.5547]
[1747485666663,137.67151474,167.62,167.54,26.0]
[1747485667366,131.7056,167.62,167.54,26.0]
[1747485667583,131.7056,167.62,167.54,45.38]
[1747485667873,137.67151484,167.62,167.54,45.38]
[1747485668254,131.7056,167.62,167.54,45.38]
[1747485668463,59.00323541,167.64,167.54,45.38]
[1747485668464,184.06553633,167.64,167.54,45.38]
[1747485668700,184.06553633,167.64,167.55,5.96836765]
[1747485669365,198.97844494,167.64,167.55,5.96836765]
[1747485671867,198.97844494,167.64,167.54,51.3486272]
[1747485672363,131.7056,167.63,167.54,51.3486272]
[1747485673475,5.96587519,167.62,167.54,51.3486272]
[1747485675565,137.67119201,167.63,167.54,51.3486272]
[1747485678479,131.7056,167.62,167.54,51.3486272]
[1747485678982,137.67161757,167.62,167.54,51.3486272]
[1747485681877,131.7056,167.62,167.54,51.3486272]
[1747485682081,131.7056,167.62,167.54,66.27043691]
[1747485682382,131.7056,167.62,167.55,1.5138]
[1747485683301,131.7056,167.62,167.56,5.96801145]
[1747485683472,137.67161025,167.62,167.56,5.96801145]
[1747485683890,137.67161025,167.62,167.55,7.48207071]
[1747485684681,137.67161025,167.62,167.54,51.3486237]
[1747485684881,137.67161025,167.62,167.54,26.0]
[1747485685803,152.58629823,167.62,167.54,26.0]
[1747485687903,152.58629823,167.62,167.54,31.96870229]
[1747485688284,137.67161025,167.62,167.54,31.96870229]
[1747485689180,131.7056,167.62,167.54,46.890512]
[1747485689878,19.36,167.63,167.55,18.64964886]
[1747485690210,137.67014049,167.66,167.56,7.5543]
[1747485690377,137.67014049,167.66,167.57,19.54]
[1747485690996,137.67014049,167.66,167.58,5.9672992]
[1747485695313,131.7056,167.66,167.61,26.0]
[1747485695623,157.14847094,167.71,167.61,26.0]
[1747485695986,172.05515509,167.71,167.61,26.0]
[1747485696190,172.05515509,167.71,167.6,26.0]
[1747485696604,131.7056,167.7,167.6,26.0]
[1747485696910,18.64964886,167.69,167.6,26.0]
[1747485697095,38.12964886,167.69,167.6,26.0]
[1747485697498,20.87309159,167.68,167.6,26.0]
[1747485702522,5.96445186,167.66,167.6,26.0]
[1747485702727,131.7056,167.65,167.6,26.0]
[1747485703398,131.7056,167.64,167.56,26.9743]
[1747485703602,131.7056,167.64,167.57,26.0]
[1747485704527,5.96551929,167.63,167.57,26.0]
[1747485710409,137.6708818,167.64,167.57,31.96765515]
[1747485712432,137.6708818,167.64,167.57,26.0]
[1747485713842,152.58379041,167.64,167.57,26.0]
[1747485715840,152.58379041,167.64,167.58,26.0]
[1747485717347,137.6708818,167.64,167.58,26.0]
[1747485717524,131.7056,167.64,167.58,31.96719648]
[1747485717921,137.67085814,167.64,167.58,31.96719648]
[1747485721957,137.67085814,167.64,167.58,26.0]
[1747485722548,152.58376675,167.64,167.58,26.0]
[1747485723565,152.58376675,167.64,167.56,1.541]
[1747485723880,152.58376675,167.64,167.57,26.0]
[1747485724169,137.67085814,167.64,167.57,26.0]
[1747485724381,131.7056,167.64,167.58,26.0]
[1747485724691,137.67077555,167.64,167.58,27.6488]
[1747485725543,137.67077555,167.64,167.58,33.61603407]
[1747485725737,137.67077555,167.64,167.58,26.0]
[1747485726461,131.7056,167.63,167.58,26.0]
[1747485727251,131.7056,167.63,167.58,31.96725469]
[1747485728488,137.67112357,167.63,167.58,26.0]
[1747485730270,131.7056,167.63,167.58,31.96713374]
[1747485732388,5.96454321,167.66,167.58,31.96713374]
[1747485733594,5.96409614,167.67,167.58,31.96713374]
[1747485733898,5.96409614,167.67,167.58,36.23012656]
[1747485735614,5.96374045,167.68,167.58,36.23012656]
[1747485735980,5.96231814,167.72,167.62,26.0]
[1747485736508,20.86811351,167.72,167.62,26.0]
[1747485737506,20.86811351,167.72,167.62,31.96573359]
[1747485738615,20.86811351,167.72,167.62,26.0]
[1747485738783,18.64964886,167.71,167.62,26.0]
[1747485739290,18.64964886,167.71,167.62,31.96585254]
[1747485739690,5.96302921,167.7,167.62,31.96585254]
[1747485741808,20.86811351,167.72,167.62,31.96585254]
[1747485743516,20.86811351,167.72,167.62,26.0]
[1747485745731,20.87060225,167.7,167.62,26.0]
[1747485746237,46.87060225,167.7,167.59,13.68442317]
[1747485747723,46.87060225,167.7,167.59,7.7176]
[1747485747724,20.87309159,167.68,167.59,7.7176]